[Event "Late-Titled-Tuesday-Blitz-September-05-2023"]
[Site "Chess.com"]
[Date "2023.09.05"]
[Round "5"]
[White "hurricane7791"]
[Black "ArmanGhevondyanchess"]
[Result "1-0"]
[WhiteElo "2722"]
[BlackElo "2527"]
[TimeControl "180+1"]
[EndTime "14:53:23 PDT"]
[Termination "hurricane7791 won by resignation"]

1. d4 {[%clk 0:03:00.6]} 1... Nf6 {[%clk 0:03:00.2]} 2. c4 {[%clk 0:03:00]} 2...
g6 {[%clk 0:03:00.2]} 3. Nc3 {[%clk 0:02:59.9]} 3... d5 {[%clk 0:03:00.9]} 4. h4
{[%clk 0:02:59.5]} 4... Bg7 {[%clk 0:03:01.2]} 5. cxd5 {[%clk 0:02:59.4]} 5...
Nxd5 {[%clk 0:03:02]} 6. h5 {[%clk 0:03:00.3]} 6... Nc6 {[%clk 0:03:00.9]} 7.
Nf3 {[%clk 0:02:57.9]} 7... Bg4 {[%clk 0:03:00.5]} 8. Rh4 {[%clk 0:02:51.6]}
8... f5 {[%clk 0:02:54.3]} 9. e3 {[%clk 0:02:38.1]} 9... Bf6 {[%clk 0:02:51.5]}
10. Rh1 {[%clk 0:02:20.5]} 10... gxh5 {[%clk 0:02:50.6]} 11. Qb3 {[%clk
0:02:19.7]} 11... Nb6 {[%clk 0:02:48.8]} 12. Bd2 {[%clk 0:02:17.2]} 12... Qd7
{[%clk 0:02:40]} 13. d5 {[%clk 0:02:17.2]} 13... Ne5 {[%clk 0:02:35.7]} 14. Nxe5
{[%clk 0:02:16.7]} 14... Bxe5 {[%clk 0:02:36.6]} 15. f3 {[%clk 0:02:16]} 15...
Bg3+ {[%clk 0:02:36.6]} 16. Kd1 {[%clk 0:02:12.5]} 16... O-O-O {[%clk
0:02:33.9]} 17. fxg4 {[%clk 0:02:12.4]} 17... hxg4 {[%clk 0:02:30.6]} 18. Kc2
{[%clk 0:02:03.1]} 18... e6 {[%clk 0:02:27.5]} 19. Rd1 {[%clk 0:02:00.6]} 19...
exd5 {[%clk 0:02:26.7]} 20. Bd3 {[%clk 0:01:59.6]} 20... Rhf8 {[%clk 0:02:19.8]}
21. Bc1 {[%clk 0:01:56.1]} 21... Kb8 {[%clk 0:02:16.4]} 22. a4 {[%clk
0:01:55.1]} 22... f4 {[%clk 0:02:10.3]} 23. exf4 {[%clk 0:01:48.2]} 23... Bxf4
{[%clk 0:02:10.5]} 24. a5 {[%clk 0:01:43.4]} 24... Nc4 {[%clk 0:02:07.7]} 25. a6
{[%clk 0:01:24.7]} 25... b6 {[%clk 0:02:06.5]} 26. Bxc4 {[%clk 0:01:20.8]} 26...
dxc4 {[%clk 0:02:06.6]} 27. Qxc4 {[%clk 0:01:21.4]} 27... Qf5+ {[%clk
0:02:05.4]} 28. Kb3 {[%clk 0:01:21.6]} 28... Qa5 {[%clk 0:02:00.7]} 29. Rxd8+
{[%clk 0:01:17.6]} 29... Rxd8 {[%clk 0:02:00.7]} 30. Bxf4 {[%clk 0:01:15.6]}
30... h5 {[%clk 0:02:01.1]} 31. Qxc7+ {[%clk 0:01:15.1]} 1-0

[Event "Late-Titled-Tuesday-Blitz-September-05-2023"]
[Site "Chess.com"]
[Date "2023.09.05"]
[Round "5"]
[White "OYAcosta"]
[Black "schack_vit"]
[Result "0-1"]
[WhiteElo "2268"]
[BlackElo "2414"]
[TimeControl "180+1"]
[EndTime "14:53:34 PDT"]
[Termination "schack_vit won by resignation"]

1. d4 {[%clk 0:03:00.9]} 1... d5 {[%clk 0:02:59.7]} 2. Bf4 {[%clk 0:02:56.6]}
2... Nf6 {[%clk 0:02:56]} 3. e3 {[%clk 0:02:56.6]} 3... c5 {[%clk 0:02:56.2]} 4.
Nf3 {[%clk 0:02:55.8]} 4... Nc6 {[%clk 0:02:56.2]} 5. Nbd2 {[%clk 0:02:56.5]}
5... e6 {[%clk 0:02:53.9]} 6. c3 {[%clk 0:02:56.5]} 6... Bd6 {[%clk 0:02:53.7]}
7. Bg3 {[%clk 0:02:56.4]} 7... O-O {[%clk 0:02:52.9]} 8. Ne5 {[%clk 0:02:54.9]}
8... Qc7 {[%clk 0:02:40.3]} 9. f4 {[%clk 0:02:53.5]} 9... b6 {[%clk 0:02:36.5]}
10. Bd3 {[%clk 0:02:52.6]} 10... Bb7 {[%clk 0:02:35.7]} 11. Qf3 {[%clk
0:02:52.5]} 11... Ne7 {[%clk 0:02:35.6]} 12. Bh4 {[%clk 0:02:52.6]} 12... Ne8
{[%clk 0:02:26.5]} 13. g4 {[%clk 0:02:49.2]} 13... f6 {[%clk 0:02:25.3]} 14. g5
{[%clk 0:02:38.8]} 14... fxe5 {[%clk 0:02:22.4]} 15. dxe5 {[%clk 0:02:32.8]}
15... Bxe5 {[%clk 0:02:22.3]} 16. Qh5 {[%clk 0:02:33]} 16... g6 {[%clk
0:02:22.6]} 17. Qg4 {[%clk 0:02:24.4]} 17... Bg7 {[%clk 0:02:08.6]} 18. Qxe6+
{[%clk 0:02:22.3]} 18... Kh8 {[%clk 0:02:08.3]} 19. Qh3 {[%clk 0:01:55.6]} 19...
d4 {[%clk 0:02:01.3]} 20. Rf1 {[%clk 0:01:53.8]} 20... dxc3 {[%clk 0:01:57.4]}
21. bxc3 {[%clk 0:01:53.4]} 21... Bxc3 {[%clk 0:01:58.1]} 22. Rc1 {[%clk
0:01:52.4]} 22... Bg7 {[%clk 0:01:57]} 23. Nc4 {[%clk 0:01:49.9]} 23... Nd6
{[%clk 0:01:51.8]} 24. Bg3 {[%clk 0:01:46.3]} 24... Nxc4 {[%clk 0:01:49.8]} 25.
Bxc4 {[%clk 0:01:46.5]} 25... Nf5 {[%clk 0:01:46.6]} 26. Bf2 {[%clk 0:01:46.2]}
26... Rae8 {[%clk 0:01:45.9]} 27. Bd3 {[%clk 0:01:42.3]} 27... Be4 {[%clk
0:01:44.1]} 28. Be2 {[%clk 0:01:40.9]} 28... Qe7 {[%clk 0:01:40.4]} 29. Bb5
{[%clk 0:01:37.6]} 29... Rd8 {[%clk 0:01:39.4]} 30. Bg1 {[%clk 0:01:31.5]} 30...
Bd3 {[%clk 0:01:39.4]} 31. Bxd3 {[%clk 0:01:29.6]} 31... Rxd3 {[%clk 0:01:40.3]}
32. Rf2 {[%clk 0:01:30.2]} 32... Rxe3+ {[%clk 0:01:39.8]} 0-1

[Event "Late-Titled-Tuesday-Blitz-September-05-2023"]
[Site "Chess.com"]
[Date "2023.09.05"]
[Round "5"]
[White "MikeSailer"]
[Black "ErikRonka"]
[Result "0-1"]
[WhiteElo "2189"]
[BlackElo "2495"]
[TimeControl "180+1"]
[EndTime "14:53:58 PDT"]
[Termination "ErikRonka won by resignation"]

1. d4 {[%clk 0:03:00]} 1... d5 {[%clk 0:02:59.5]} 2. Nc3 {[%clk 0:02:59]} 2...
Nf6 {[%clk 0:02:58.3]} 3. Bf4 {[%clk 0:02:57.6]} 3... c5 {[%clk 0:02:52.5]} 4.
e4 {[%clk 0:02:56.1]} 4... Nxe4 {[%clk 0:02:45.1]} 5. Nxe4 {[%clk 0:02:50.9]}
5... dxe4 {[%clk 0:02:46]} 6. dxc5 {[%clk 0:02:46.4]} 6... Qa5+ {[%clk 0:02:46]}
7. c3 {[%clk 0:02:45.1]} 7... Qxc5 {[%clk 0:02:46.5]} 8. Qa4+ {[%clk 0:02:44.9]}
8... Nc6 {[%clk 0:02:39.1]} 9. Qxe4 {[%clk 0:02:42.2]} 9... g6 {[%clk
0:02:38.4]} 10. Nf3 {[%clk 0:02:22.9]} 10... Bg7 {[%clk 0:02:38.6]} 11. Be2
{[%clk 0:02:15.4]} 11... Bxc3+ {[%clk 0:02:27.2]} 12. Nd2 {[%clk 0:01:35.9]}
12... Bxb2 {[%clk 0:02:17.7]} 13. O-O {[%clk 0:01:19.1]} 13... Bf5 {[%clk
0:02:07.1]} 14. Qa4 {[%clk 0:00:56.9]} 14... Qb4 {[%clk 0:01:51.4]} 15. Qd1
{[%clk 0:00:38.3]} 15... Qxf4 {[%clk 0:01:39.5]} 0-1

[Event "Late-Titled-Tuesday-Blitz-September-05-2023"]
[Site "Chess.com"]
[Date "2023.09.05"]
[Round "5"]
[White "Colombiano07"]
[Black "Jenia84"]
[Result "0-1"]
[WhiteElo "2403"]
[BlackElo "2332"]
[TimeControl "180+1"]
[EndTime "14:54:07 PDT"]
[Termination "Jenia84 won by resignation"]

1. d4 {[%clk 0:02:55.5]} 1... Nf6 {[%clk 0:02:59.6]} 2. c4 {[%clk 0:02:55.7]}
2... e6 {[%clk 0:03:00]} 3. Nc3 {[%clk 0:02:55.2]} 3... Bb4 {[%clk 0:02:59.8]}
4. e3 {[%clk 0:02:55.8]} 4... O-O {[%clk 0:02:59.3]} 5. Ne2 {[%clk 0:02:56.7]}
5... d5 {[%clk 0:02:57.2]} 6. a3 {[%clk 0:02:57]} 6... Bxc3+ {[%clk 0:02:56.5]}
7. Nxc3 {[%clk 0:02:57.9]} 7... b6 {[%clk 0:02:56.6]} 8. cxd5 {[%clk 0:02:56.6]}
8... exd5 {[%clk 0:02:56]} 9. Be2 {[%clk 0:02:56.6]} 9... c5 {[%clk 0:02:56.2]}
10. O-O {[%clk 0:02:57.5]} 10... Ba6 {[%clk 0:02:54.5]} 11. Nb5 {[%clk
0:02:54.2]} 11... Qd7 {[%clk 0:02:49.4]} 12. a4 {[%clk 0:02:53.5]} 12... Ne4
{[%clk 0:02:44.4]} 13. f3 {[%clk 0:02:41.9]} 13... Nd6 {[%clk 0:02:43.8]} 14.
Qb3 {[%clk 0:02:36.7]} 14... c4 {[%clk 0:02:38.6]} 15. Qb4 {[%clk 0:02:29.3]}
15... Nxb5 {[%clk 0:02:37.9]} 16. axb5 {[%clk 0:02:29.2]} 16... Bxb5 {[%clk
0:02:37.4]} 17. Bd2 {[%clk 0:02:24.6]} 17... a5 {[%clk 0:02:37.2]} 18. Qc3
{[%clk 0:02:25.1]} 18... Na6 {[%clk 0:02:34.3]} 19. e4 {[%clk 0:02:22.1]} 19...
Nb4 {[%clk 0:02:31]} 20. Rfc1 {[%clk 0:02:15.3]} 20... Rad8 {[%clk 0:02:26.9]}
21. e5 {[%clk 0:02:13.3]} 21... f6 {[%clk 0:02:21.3]} 22. f4 {[%clk 0:02:12.9]}
22... Qf5 {[%clk 0:02:16.3]} 23. Qg3 {[%clk 0:02:02.6]} 23... Bd7 {[%clk
0:02:07.3]} 24. Bxb4 {[%clk 0:01:41.2]} 24... axb4 {[%clk 0:02:07]} 25. Ra7
{[%clk 0:01:42.1]} 25... Qe4 {[%clk 0:02:05.7]} 26. Qf2 {[%clk 0:01:32.3]} 26...
fxe5 {[%clk 0:01:58]} 27. dxe5 {[%clk 0:01:33.2]} 27... Be6 {[%clk 0:01:50.2]}
28. Qxb6 {[%clk 0:01:25.7]} 28... Qxe2 {[%clk 0:01:44.6]} 29. Qxe6+ {[%clk
0:01:25]} 29... Kh8 {[%clk 0:01:44.7]} 30. Rf1 {[%clk 0:00:54.5]} 30... Qe3+
{[%clk 0:01:43.3]} 31. Kh1 {[%clk 0:00:54.2]} 31... Qxa7 {[%clk 0:01:43]} 0-1

[Event "Late-Titled-Tuesday-Blitz-September-05-2023"]
[Site "Chess.com"]
[Date "2023.09.05"]
[Round "5"]
[White "AlexNovitz"]
[Black "WilsonPalencia21"]
[Result "0-1"]
[WhiteElo "2227"]
[BlackElo "2551"]
[TimeControl "180+1"]
[EndTime "14:54:27 PDT"]
[Termination "WilsonPalencia21 won by resignation"]

1. e4 {[%clk 0:02:59.5]} 1... c5 {[%clk 0:02:59.5]} 2. Nf3 {[%clk 0:02:59]} 2...
d6 {[%clk 0:02:58.1]} 3. d4 {[%clk 0:02:59.7]} 3... cxd4 {[%clk 0:02:56.4]} 4.
Nxd4 {[%clk 0:03:00.6]} 4... Nf6 {[%clk 0:02:55.4]} 5. Nc3 {[%clk 0:03:01.2]}
5... g6 {[%clk 0:02:55]} 6. Be3 {[%clk 0:03:00.3]} 6... Bg7 {[%clk 0:02:52.5]}
7. f3 {[%clk 0:03:00.6]} 7... O-O {[%clk 0:02:51.3]} 8. Qd2 {[%clk 0:03:01.2]}
8... Nc6 {[%clk 0:02:51.3]} 9. g4 {[%clk 0:03:01.9]} 9... Nxd4 {[%clk
0:02:49.3]} 10. Bxd4 {[%clk 0:03:01.7]} 10... Be6 {[%clk 0:02:49.8]} 11. h4
{[%clk 0:03:01.5]} 11... Qa5 {[%clk 0:02:48.6]} 12. h5 {[%clk 0:03:01.5]} 12...
Rfc8 {[%clk 0:02:47.4]} 13. hxg6 {[%clk 0:02:50]} 13... fxg6 {[%clk 0:02:48.3]}
14. Be2 {[%clk 0:02:44.8]} 14... Bf7 {[%clk 0:02:46.3]} 15. f4 {[%clk
0:02:39.6]} 15... e5 {[%clk 0:02:37.3]} 16. Be3 {[%clk 0:02:35.9]} 16... exf4
{[%clk 0:02:33.3]} 17. Bxf4 {[%clk 0:02:36.8]} 17... Rxc3 {[%clk 0:02:32.5]} 18.
Qxc3 {[%clk 0:02:29.2]} 18... Qxc3+ {[%clk 0:02:31.5]} 19. bxc3 {[%clk
0:02:30.1]} 19... Nxe4 {[%clk 0:02:31.3]} 20. Rb1 {[%clk 0:02:11.3]} 20... Nxc3
{[%clk 0:02:24.9]} 21. Rxb7 {[%clk 0:02:09.6]} 21... Re8 {[%clk 0:02:23.6]} 22.
Rh2 {[%clk 0:01:57.4]} 22... Bc4 {[%clk 0:02:22.2]} 23. Bxd6 {[%clk 0:01:37]}
23... Bxe2 {[%clk 0:02:09]} 24. Rxa7 {[%clk 0:01:26.7]} 24... Bxg4+ {[%clk
0:02:03.9]} 25. Kd2 {[%clk 0:01:23]} 25... Ne4+ {[%clk 0:01:59.6]} 26. Kc1
{[%clk 0:01:20.8]} 26... Nxd6 {[%clk 0:02:00.5]} 27. a4 {[%clk 0:01:13.2]} 27...
Nc4 {[%clk 0:01:56]} 28. Rh1 {[%clk 0:01:09.5]} 28... h5 {[%clk 0:01:50.6]} 29.
a5 {[%clk 0:01:08.7]} 29... Bh6+ {[%clk 0:01:46.7]} 30. Kb1 {[%clk 0:01:06.8]}
30... Rb8+ {[%clk 0:01:47.1]} 31. Ka2 {[%clk 0:01:05.7]} 31... Be6 {[%clk
0:01:41]} 32. a6 {[%clk 0:01:02.8]} 32... Ne3+ {[%clk 0:01:31.8]} 33. Ka3 {[%clk
0:01:00.5]} 33... Nxc2+ {[%clk 0:01:24.5]} 34. Ka4 {[%clk 0:01:01.1]} 34... Bb3+
{[%clk 0:01:23.9]} 0-1

[Event "Late-Titled-Tuesday-Blitz-September-05-2023"]
[Site "Chess.com"]
[Date "2023.09.05"]
[Round "5"]
[White "kaanadayhamle"]
[Black "boguszp"]
[Result "1-0"]
[WhiteElo "2355"]
[BlackElo "2078"]
[TimeControl "180+1"]
[EndTime "14:54:28 PDT"]
[Termination "kaanadayhamle won by resignation"]

1. c4 {[%clk 0:02:57.5]} 1... c5 {[%clk 0:02:57.3]} 2. Nf3 {[%clk 0:02:56.3]}
2... g6 {[%clk 0:02:57.8]} 3. Nc3 {[%clk 0:02:56.3]} 3... Bg7 {[%clk 0:02:58.4]}
4. e3 {[%clk 0:02:56.3]} 4... Nc6 {[%clk 0:02:58.8]} 5. d4 {[%clk 0:02:56.7]}
5... cxd4 {[%clk 0:02:55.4]} 6. exd4 {[%clk 0:02:57.6]} 6... d6 {[%clk
0:02:53.5]} 7. Be3 {[%clk 0:02:57.2]} 7... Nf6 {[%clk 0:02:51.9]} 8. d5 {[%clk
0:02:55.4]} 8... Ne5 {[%clk 0:02:48.5]} 9. Nxe5 {[%clk 0:02:55.5]} 9... dxe5
{[%clk 0:02:47.5]} 10. Be2 {[%clk 0:02:56.1]} 10... O-O {[%clk 0:02:44.5]} 11.
O-O {[%clk 0:02:55.8]} 11... e6 {[%clk 0:02:44.9]} 12. d6 {[%clk 0:02:52.1]}
12... b6 {[%clk 0:02:38.3]} 13. Bf3 {[%clk 0:02:51.7]} 13... Rb8 {[%clk
0:02:38.1]} 14. b4 {[%clk 0:02:48.7]} 14... e4 {[%clk 0:02:30.2]} 15. Be2 {[%clk
0:02:45.6]} 15... Ne8 {[%clk 0:02:22.1]} 16. Rc1 {[%clk 0:02:45.1]} 16... Nxd6
{[%clk 0:02:14.5]} 17. c5 {[%clk 0:02:42.6]} 17... bxc5 {[%clk 0:02:12]} 18.
bxc5 {[%clk 0:02:43.5]} 18... Nf5 {[%clk 0:01:59.8]} 19. Nxe4 {[%clk 0:02:36.8]}
19... Qxd1 {[%clk 0:01:51.9]} 20. Rfxd1 {[%clk 0:02:36.4]} 20... Bb7 {[%clk
0:01:51.1]} 21. c6 {[%clk 0:02:34]} 21... Bc8 {[%clk 0:01:40.2]} 22. Bc5 {[%clk
0:02:23.8]} 22... Re8 {[%clk 0:01:38.1]} 23. g4 {[%clk 0:02:20.9]} 23... Ne7
{[%clk 0:01:35.6]} 24. Nd6 {[%clk 0:02:18]} 24... Rd8 {[%clk 0:01:21.2]} 25. c7
{[%clk 0:02:17.1]} 25... Nc6 {[%clk 0:00:56]} 26. cxb8=Q {[%clk 0:02:04.5]}
26... Nxb8 {[%clk 0:00:55.3]} 27. Bxa7 {[%clk 0:02:04.6]} 27... Bd7 {[%clk
0:00:47]} 28. Nb7 {[%clk 0:01:59.5]} 28... Rc8 {[%clk 0:00:32.4]} 29. Bxb8
{[%clk 0:01:57.9]} 29... Rxb8 {[%clk 0:00:19.1]} 30. Rxd7 {[%clk 0:01:57.2]} 1-0

[Event "Late-Titled-Tuesday-Blitz-September-05-2023"]
[Site "Chess.com"]
[Date "2023.09.05"]
[Round "5"]
[White "kingofthenil"]
[Black "BigAl"]
[Result "0-1"]
[WhiteElo "2762"]
[BlackElo "2550"]
[TimeControl "180+1"]
[EndTime "14:54:34 PDT"]
[Termination "BigAl won by resignation"]

1. e4 {[%clk 0:02:59.1]} 1... c6 {[%clk 0:02:59.7]} 2. Nf3 {[%clk 0:02:54.8]}
2... d5 {[%clk 0:02:57.2]} 3. e5 {[%clk 0:02:55.4]} 3... Bf5 {[%clk 0:02:55.9]}
4. Be2 {[%clk 0:02:55]} 4... e6 {[%clk 0:02:56.2]} 5. O-O {[%clk 0:02:55.4]}
5... Ne7 {[%clk 0:02:56.7]} 6. d4 {[%clk 0:02:55.7]} 6... Ng6 {[%clk 0:02:57.3]}
7. Be3 {[%clk 0:02:54.4]} 7... Nd7 {[%clk 0:02:56.2]} 8. Nbd2 {[%clk 0:02:54.5]}
8... f6 {[%clk 0:02:56.8]} 9. c4 {[%clk 0:02:45.7]} 9... Be7 {[%clk 0:02:35.6]}
10. exf6 {[%clk 0:02:31.7]} 10... Bxf6 {[%clk 0:02:34.6]} 11. Re1 {[%clk
0:02:30.9]} 11... O-O {[%clk 0:02:34.3]} 12. Nf1 {[%clk 0:02:31.4]} 12... Nh4
{[%clk 0:02:07.3]} 13. Nxh4 {[%clk 0:02:04.5]} 13... Bxh4 {[%clk 0:02:07.2]} 14.
Ng3 {[%clk 0:02:05.4]} 14... Bg6 {[%clk 0:02:07.6]} 15. Bg4 {[%clk 0:02:03.9]}
15... Qf6 {[%clk 0:02:00.2]} 16. cxd5 {[%clk 0:02:02]} 16... cxd5 {[%clk
0:01:58.1]} 17. Qb3 {[%clk 0:02:01]} 17... Nb6 {[%clk 0:01:57.1]} 18. Rac1
{[%clk 0:02:00.2]} 18... Nc4 {[%clk 0:01:48.7]} 19. Rxc4 {[%clk 0:01:58.4]}
19... dxc4 {[%clk 0:01:48.5]} 20. Qxc4 {[%clk 0:01:58.3]} 20... Rae8 {[%clk
0:01:36]} 21. Bf3 {[%clk 0:01:50.3]} 21... b6 {[%clk 0:01:28]} 22. h3 {[%clk
0:01:42.3]} 22... Kh8 {[%clk 0:01:27.3]} 23. Ne4 {[%clk 0:01:34.4]} 23... Bxe4
{[%clk 0:01:25.1]} 24. Bxe4 {[%clk 0:01:29.4]} 24... Bxf2+ {[%clk 0:01:25.1]}
25. Kh2 {[%clk 0:01:25.3]} 25... Bxe3 {[%clk 0:01:18.5]} 26. Rxe3 {[%clk
0:01:22.1]} 26... Qf4+ {[%clk 0:01:18.7]} 27. Rg3 {[%clk 0:01:21.7]} 27... Qxe4
{[%clk 0:01:19.2]} 28. Qc7 {[%clk 0:01:21.5]} 28... Qxd4 {[%clk 0:01:14.5]} 29.
h4 {[%clk 0:01:17.8]} 29... h6 {[%clk 0:01:13.1]} 30. h5 {[%clk 0:01:17.7]}
30... Rf5 {[%clk 0:01:08.4]} 31. Qf7 {[%clk 0:01:06.4]} 31... Rxf7 {[%clk
0:01:02.4]} 32. Rg4 {[%clk 0:01:06]} 32... Qxg4 {[%clk 0:01:01.4]} 0-1

[Event "Late-Titled-Tuesday-Blitz-September-05-2023"]
[Site "Chess.com"]
[Date "2023.09.05"]
[Round "5"]
[White "BeanScreen"]
[Black "DTChess"]
[Result "0-1"]
[WhiteElo "2697"]
[BlackElo "2478"]
[TimeControl "180+1"]
[EndTime "14:54:35 PDT"]
[Termination "DTChess won by checkmate"]

1. e4 {[%clk 0:03:00.9]} 1... e5 {[%clk 0:02:59.8]} 2. Nf3 {[%clk 0:03:00.7]}
2... Nc6 {[%clk 0:02:59.9]} 3. Bc4 {[%clk 0:03:01.4]} 3... Nf6 {[%clk
0:02:59.2]} 4. d3 {[%clk 0:03:01.7]} 4... Bc5 {[%clk 0:02:58.8]} 5. c3 {[%clk
0:03:02.2]} 5... d6 {[%clk 0:02:58.7]} 6. O-O {[%clk 0:03:02.1]} 6... Bb6 {[%clk
0:02:59.1]} 7. Re1 {[%clk 0:03:01.1]} 7... Be6 {[%clk 0:02:59]} 8. Bxe6 {[%clk
0:02:54.6]} 8... fxe6 {[%clk 0:02:58.8]} 9. d4 {[%clk 0:02:52.7]} 9... exd4
{[%clk 0:02:57]} 10. cxd4 {[%clk 0:02:53.6]} 10... O-O {[%clk 0:02:56.9]} 11.
Nc3 {[%clk 0:02:52.5]} 11... e5 {[%clk 0:02:51.4]} 12. dxe5 {[%clk 0:02:33.6]}
12... dxe5 {[%clk 0:02:48.8]} 13. Be3 {[%clk 0:02:31.5]} 13... Rf7 {[%clk
0:02:38.4]} 14. Qb3 {[%clk 0:02:27.2]} 14... h6 {[%clk 0:02:32.6]} 15. Rad1
{[%clk 0:02:25]} 15... Qe8 {[%clk 0:02:29.1]} 16. Bxb6 {[%clk 0:02:22.8]} 16...
axb6 {[%clk 0:02:26.7]} 17. Nd5 {[%clk 0:02:22.8]} 17... Kh7 {[%clk 0:02:23.3]}
18. a3 {[%clk 0:02:11.3]} 18... Nh5 {[%clk 0:02:20.6]} 19. g3 {[%clk 0:01:21.6]}
19... Qf8 {[%clk 0:02:08.3]} 20. Kg2 {[%clk 0:01:20.4]} 20... Nd4 {[%clk
0:01:54.9]} 21. Nxd4 {[%clk 0:01:16.2]} 21... Rxf2+ {[%clk 0:01:53.4]} 22. Kg1
{[%clk 0:01:17]} 22... exd4 {[%clk 0:01:49.9]} 23. Nxc7 {[%clk 0:01:01.9]} 23...
Ra5 {[%clk 0:01:32]} 24. Qxb6 {[%clk 0:00:45.5]} 24... Qf3 {[%clk 0:01:19.2]}
25. Qxa5 {[%clk 0:00:33.3]} 25... Qg2# {[%clk 0:01:17.8]} 0-1

[Event "Late-Titled-Tuesday-Blitz-September-05-2023"]
[Site "Chess.com"]
[Date "2023.09.05"]
[Round "5"]
[White "TC2304"]
[Black "miraitrunks"]
[Result "1/2-1/2"]
[WhiteElo "2358"]
[BlackElo "2098"]
[TimeControl "180+1"]
[EndTime "14:54:38 PDT"]
[Termination "Game drawn by agreement"]

1. c4 {[%clk 0:03:00.9]} 1... e5 {[%clk 0:02:54.2]} 2. g3 {[%clk 0:03:00.1]}
2... Nf6 {[%clk 0:02:53.2]} 3. Bg2 {[%clk 0:03:00.6]} 3... Nc6 {[%clk
0:02:53.7]} 4. Nc3 {[%clk 0:03:01.2]} 4... Bb4 {[%clk 0:02:53.5]} 5. e3 {[%clk
0:02:59.5]} 5... O-O {[%clk 0:02:52.3]} 6. Nge2 {[%clk 0:03:00.2]} 6... d6
{[%clk 0:02:51.7]} 7. O-O {[%clk 0:03:00.6]} 7... Be6 {[%clk 0:02:52.2]} 8. Nd5
{[%clk 0:02:59]} 8... Bxd5 {[%clk 0:02:50.7]} 9. cxd5 {[%clk 0:02:59.9]} 9...
Ne7 {[%clk 0:02:51]} 10. Nc3 {[%clk 0:02:59.1]} 10... a6 {[%clk 0:02:41.4]} 11.
a3 {[%clk 0:02:59.2]} 11... Bc5 {[%clk 0:02:41.2]} 12. b4 {[%clk 0:02:53.9]}
12... Ba7 {[%clk 0:02:40.1]} 13. Bb2 {[%clk 0:02:42.6]} 13... c6 {[%clk
0:02:37.9]} 14. dxc6 {[%clk 0:02:42]} 14... bxc6 {[%clk 0:02:38.8]} 15. Rc1
{[%clk 0:02:40.6]} 15... Rc8 {[%clk 0:02:38.9]} 16. Qe2 {[%clk 0:02:37.7]} 16...
Qb6 {[%clk 0:02:36.4]} 17. Ne4 {[%clk 0:02:24]} 17... Nxe4 {[%clk 0:02:25.5]}
18. Bxe4 {[%clk 0:02:23.6]} 18... f5 {[%clk 0:02:23.8]} 19. Bg2 {[%clk
0:02:21.3]} 19... a5 {[%clk 0:02:19.6]} 20. Bc3 {[%clk 0:02:16.2]} 20... axb4
{[%clk 0:02:18.8]} 21. axb4 {[%clk 0:02:13.9]} 21... Ng6 {[%clk 0:02:06.5]} 22.
d4 {[%clk 0:02:09.8]} 22... f4 {[%clk 0:02:04]} 23. dxe5 {[%clk 0:01:56.8]}
23... dxe5 {[%clk 0:02:04.7]} 24. exf4 {[%clk 0:01:42.8]} 24... exf4 {[%clk
0:02:05.4]} 25. Qc4+ {[%clk 0:01:24.3]} 25... Kh8 {[%clk 0:02:03.6]} 26. Rcd1
{[%clk 0:01:17.5]} 26... fxg3 {[%clk 0:02:02.3]} 27. hxg3 {[%clk 0:01:17.5]}
27... Rxf2 {[%clk 0:01:56.2]} 28. Bd4 {[%clk 0:01:16.5]} 28... Rxf1+ {[%clk
0:01:53.7]} 29. Bxf1 {[%clk 0:01:12.9]} 29... Qb7 {[%clk 0:01:53.1]} 30. Bd3
{[%clk 0:01:00.6]} 30... Rd8 {[%clk 0:01:41.4]} 31. Bxg6 {[%clk 0:00:52.9]}
31... Bxd4+ {[%clk 0:01:38.8]} 32. Rxd4 {[%clk 0:00:50]} 32... Rxd4 {[%clk
0:01:38]} 33. Qxd4 {[%clk 0:00:47.6]} 33... hxg6 {[%clk 0:01:37.7]} 1/2-1/2

[Event "Late-Titled-Tuesday-Blitz-September-05-2023"]
[Site "Chess.com"]
[Date "2023.09.05"]
[Round "5"]
[White "chessS1r"]
[Black "kacprekt"]
[Result "1-0"]
[WhiteElo "2597"]
[BlackElo "2431"]
[TimeControl "180+1"]
[EndTime "14:54:45 PDT"]
[Termination "chessS1r won by resignation"]

1. d4 {[%clk 0:03:00.9]} 1... Nf6 {[%clk 0:02:56.3]} 2. Bg5 {[%clk 0:03:00.6]}
2... d6 {[%clk 0:02:54.1]} 3. Bxf6 {[%clk 0:02:58.5]} 3... exf6 {[%clk
0:02:52.2]} 4. c4 {[%clk 0:02:54.1]} 4... f5 {[%clk 0:02:51.5]} 5. Nc3 {[%clk
0:02:53.8]} 5... g6 {[%clk 0:02:50.8]} 6. e3 {[%clk 0:02:54.2]} 6... Bg7 {[%clk
0:02:51.2]} 7. g3 {[%clk 0:02:54.7]} 7... O-O {[%clk 0:02:51.5]} 8. Bg2 {[%clk
0:02:55.1]} 8... c6 {[%clk 0:02:51.2]} 9. Nge2 {[%clk 0:02:51.7]} 9... Nd7
{[%clk 0:02:51.7]} 10. Qd3 {[%clk 0:02:51]} 10... Nb6 {[%clk 0:02:50.8]} 11. O-O
{[%clk 0:02:40.1]} 11... Be6 {[%clk 0:02:49.7]} 12. b3 {[%clk 0:02:31.3]} 12...
d5 {[%clk 0:02:48.2]} 13. cxd5 {[%clk 0:02:24.2]} 13... Nxd5 {[%clk 0:02:47]}
14. Nxd5 {[%clk 0:02:24.6]} 14... Bxd5 {[%clk 0:02:47.1]} 15. Bxd5 {[%clk
0:02:25.1]} 15... Qxd5 {[%clk 0:02:46.6]} 16. Nf4 {[%clk 0:02:25.7]} 16... Qf3
{[%clk 0:02:43.6]} 17. Rac1 {[%clk 0:02:16.1]} 17... Rad8 {[%clk 0:02:42.2]} 18.
Qe2 {[%clk 0:02:14.4]} 18... Qe4 {[%clk 0:02:34.1]} 19. Qc2 {[%clk 0:02:07.5]}
19... Qf3 {[%clk 0:02:32.3]} 20. Nd3 {[%clk 0:02:07.7]} 20... h5 {[%clk
0:02:27]} 21. Qd1 {[%clk 0:02:07.2]} 21... Qe4 {[%clk 0:02:23.1]} 22. Nc5 {[%clk
0:02:06.6]} 22... Qe7 {[%clk 0:02:22.6]} 23. Qf3 {[%clk 0:02:04.8]} 23... h4
{[%clk 0:02:15.9]} 24. Qf4 {[%clk 0:01:58.5]} 24... h3 {[%clk 0:02:09.6]} 25.
Nd3 {[%clk 0:01:52.5]} 25... Qe4 {[%clk 0:02:04.6]} 26. Qxe4 {[%clk 0:01:52.4]}
26... fxe4 {[%clk 0:02:05.5]} 27. Nf4 {[%clk 0:01:52.9]} 27... g5 {[%clk
0:01:42.4]} 28. Nxh3 {[%clk 0:01:53.1]} 28... Bh6 {[%clk 0:01:38.9]} 29. Rc5
{[%clk 0:01:48.8]} 29... f6 {[%clk 0:01:38.2]} 30. Rfc1 {[%clk 0:01:45.8]} 30...
Rd6 {[%clk 0:01:36.2]} 31. Kg2 {[%clk 0:01:39.5]} 31... Rfd8 {[%clk 0:01:35.9]}
32. Ng1 {[%clk 0:01:38.9]} 32... Bf8 {[%clk 0:01:36.1]} 33. Ne2 {[%clk
0:01:32.8]} 33... Rd5 {[%clk 0:01:33.9]} 34. Rxd5 {[%clk 0:01:33.2]} 34... Rxd5
{[%clk 0:01:29.8]} 35. g4 {[%clk 0:01:33]} 35... Bb4 {[%clk 0:01:25.7]} 36. Ng3
{[%clk 0:01:31.1]} 36... Ra5 {[%clk 0:01:21.9]} 37. Rc2 {[%clk 0:01:31.2]} 37...
Kf7 {[%clk 0:01:11.9]} 38. Nxe4 {[%clk 0:01:31.3]} 38... Ke6 {[%clk 0:01:11.9]}
39. Ng3 {[%clk 0:01:27.6]} 39... b6 {[%clk 0:01:10.5]} 40. Kf3 {[%clk
0:01:25.9]} 40... c5 {[%clk 0:01:10.8]} 41. dxc5 {[%clk 0:01:24.9]} 41... bxc5
{[%clk 0:01:11.7]} 42. Ne4 {[%clk 0:01:24.6]} 42... Rb5 {[%clk 0:01:10.7]} 43.
Ke2 {[%clk 0:01:18.5]} 43... f5 {[%clk 0:01:09.1]} 44. gxf5+ {[%clk 0:01:13.8]}
44... Kxf5 {[%clk 0:01:09.2]} 45. Nd6+ {[%clk 0:01:14.1]} 1-0